[Event "45th FIDE Womens Olympiad 2024"]
[Site "Budapest"]
[Date "2024.09.11"]
[Round "1.12"]
[White "Anoud Eisa Bashkardi"]
[Black "Melia, Salome"]
[Result "0-1"]
[ECO "B31"]
[WhiteElo "1811"]
[BlackElo "2293"]
[Annotator "ChessBase"]
[PlyCount "84"]
[EventDate "2024.09.05"]
[EventType "team-tourn"]
[EventCountry "HUN"]
[SourceTitle "playchess.com"]
[Source "ChessBase"]
[SourceQuality "1"]
[WhiteTeam "United Arab Emirates"]
[BlackTeam "Georgia"]
[WhiteTeamCountry "UAE"]
[BlackTeamCountry "GEO"]
[TimeControl "40/5400+30:1800+30"]

1. e4 {[%emt 0:01:13]} c5 {[%emt 0:00:06]} 2. Nf3 {[%emt 0:00:26]} Nc6 {[%emt 0:00:07]} 3. Bb5 {[%emt 0:00:43]} g6 {[%emt 0:00:29]} 4. O-O {[%emt 0:00:19]} Bg7 {[%emt 0:00:05]} 5. Re1 {[%emt 0:00:33]} e5 {[%emt 0:03:09]} 6. c3 {[%emt 0:04:08]} Nge7 {[%emt 0:00:08]} 7. d3 {[%emt 0:03:53]} O-O {[%emt 0:00:50]} 8. Be3 {[%emt 0:00:44]} d6 {[%emt 0:02:37]} 9. h3 {[%emt 0:04:46]} h6 {[%emt 0:07:51]} 10. d4 {[%emt 0:14:56]} exd4 {[%emt 0:31:03]} 11. cxd4 {[%emt 0:00:26]} Qb6 {[%emt 0:01:52]} 12. dxc5 {[%emt 0:17:24]} dxc5 {[%emt 0:12:38]} 13. Qe2 {[%emt 0:06:26]} Nd4 {[%emt 0:03:36]} 14. Bxd4 {[%emt 0:04:13]} cxd4 {[%emt 0:00:04]} 15. Na3 {[%emt 0:02:10]} Be6 {[%emt 0:01:46]} 16. Bc4 {[%emt 0:05:01]} d3 {[%emt 0:05:07]} 17. Qxd3 {[%emt 0:03:18]} Rfd8 {[%emt 0:00:42]} 18. Qe3 {[%emt 0:01:23]} Qxe3 {[%emt 0:04:15]} 19. Rxe3 {[%emt 0:00:29]} Bxb2 {[%emt 0:05:46]} 20. Rb1 {[%emt 0:00:17]} Bxa3 {[%emt 0:00:43]} 21. Bxe6 {[%emt 0:00:28]} Bc5 {[%emt 0:00:26]} 22. Rc3 {[%emt 0:00:11]} b6 {[%emt 0:00:50]} 23. Bb3 {[%emt 0:01:42]} Nc6 {[%emt 0:03:48]} 24. Rd1 {[%emt 0:09:16]} Rxd1+ {[%emt 0:01:55]} 25. Bxd1 {[%emt 0:00:07]} Rd8 {[%emt 0:01:07]} 26. Bb3 {[%emt 0:00:32]} Kg7 {[%emt 0:01:00]} 27. Kf1 {[%emt 0:03:27]} Nb4 {[%emt 0:03:17]} 28. Ne5 {[%emt 0:09:04]} f6 {[%emt 0:02:22]} 29. Nc4 {[%emt 0:01:34]} Re8 {[%emt 0:04:53]} 30. f3 {[%emt 0:01:26]} Rd8 {[%emt 0:00:09]} 31. Ne3 {[%emt 0:03:06]} Rd2 {[%emt 0:00:57]} 32. Nc4 {[%emt 0:02:05]} Rf2+ {[%emt 0:00:47]} 33. Ke1 {[%emt 0:00:15]} Rxg2 {[%emt 0:00:35]} 34. f4 {[%emt 0:00:53]} g5 {[%emt 0:01:51]} 35. a3 {[%emt 0:00:32]} Nc6 {[%emt 0:00:35]} 36. e5 {[%emt 0:00:26]} gxf4 {[%emt 0:00:26]} 37. e6 {[%emt 0:00:32]} Rg3 {[%emt 0:00:35]} 38. Rxg3+ {[%emt 0:00:32]} fxg3 {[%emt 0:00:03]} 39. Kf1 {[%emt 0:00:30]} Nd4 {[%emt 0:00:31]} 40. Bd1 {[%emt 0:00:14]} Nxe6 {[%emt 0:00:26]} 41. Kg2 {[%emt 0:30:17]} Bf2 {[%emt 0:11:01]} 42. a4 {[%emt 0:00:00]} Nf4+ {[%emt 0:00:33]} 0-1

[Event "45th FIDE Womens Olympiad 2024"]
[Site "Budapest"]
[Date "2024.09.11"]
[Round "1.13"]
[White "Castillo Beitia, Ashley Alexandra"]
[Black "Socko, Monika"]
[Result "0-1"]
[ECO "E51"]
[WhiteElo "2071"]
[BlackElo "2422"]
[Annotator "TA"]
[PlyCount "68"]
[EventDate "2024.09.05"]
[EventType "team-tourn"]
[EventCountry "HUN"]
[SourceTitle "playchess.com"]
[Source "ChessBase"]
[SourceQuality "1"]
[WhiteTeam "Panama"]
[BlackTeam "Poland"]
[WhiteTeamCountry "PAN"]
[BlackTeamCountry "POL"]
[TimeControl "40/5400+30:1800+30"]

{[%evp 13,68,-7,-16,-4,-18,-20,-20,-11,-12,-20,-14,-37,-29,-110,-107,-103,-113,-120,-75,-130,-127,-113,-79,-89,-68,-51,-62,-61,-66,-66,-37,-75,-85,-81,-80,-208,-135,-133,-135,-140,-118,-166,-12,-56,-10,-240,-240,-240,-240,-414,-415,-381,-313,-848,-898,-864,-847]} 1. d4 {[%emt 0:00:02]} Nf6 {[%emt 0:00:05]} 2. c4 {[%emt 0:00:11]} e6 {[%emt 0:00:05]} 3. Nf3 {[%emt 0:00:15]} b6 {[%emt 0:00:04]} 4. Nc3 {[%emt 0:00:33]} Bb4 {[%emt 0:00:13]} 5. Bd2 {[%emt 0:00:09]} Bb7 {[%emt 0:00:34]} 6. e3 {[%emt 0:00:09]} O-O {[%emt 0:00:35]} 7. Be2 {[%emt 0:02:29]} d5 {[%emt 0:00:56]} 8. cxd5 {[%emt 0:02:22]} exd5 {[%emt 0:00:38]} 9. O-O {[%emt 0:01:24]} Bd6 {[%emt 0:01:30]} 10. Nb5 {[%emt 0:07:10] The position is equal.} Be7 {[%emt 0:00:41]} 11. Rc1 {[%emt 0:01:55]} c5 {[%emt 0:00:42]} 12. dxc5 {[%emt 0:12:18]} bxc5 {[%emt 0:01:43]} 13. b4 {[%emt 0:04:10]} a6 $17 {[%emt 0:01:44]} ({Not} 13... cxb4 14. Nc7 $16) 14. Na3 {[%emt 0:01:29]} cxb4 {[%emt 0:01:18]} 15. Nc2 {[%emt 0:00:45]} Nc6 {[%emt 0:06:58]} 16. Ncd4 {[%emt 0:01:50] [#]} (16. Rb1 $142) 16... Nxd4 $1 {[%emt 0:01:31]} 17. Nxd4 {[%emt 0:03:52]} Ne4 {[%emt 0:01:39]} 18. Rb1 {[%emt 0:04:04]} a5 {[%emt 0:02:21]} 19. a3 $1 {[%emt 0:02:04]} Nxd2 {[%emt 0:14:34]} 20. Qxd2 {[%emt 0:01:05]} g6 $36 {[%emt 0:00:23][%mdl 2048] Black has some pressure.} 21. Rfd1 {[%emt 0:03:33]} Qd7 {[%emt 0:04:51]} 22. Qb2 {[%emt 0:05:54]} Ba6 {[%emt 0:08:05]} (22... bxa3 $2 23. Qxb7 Qxb7 24. Rxb7 $18) 23. axb4 {[%emt 0:06:46]} axb4 {[%emt 0:01:34]} 24. Ra1 {[%emt 0:13:51]} (24. Bxa6 $17 {was worth a try.} Rxa6 25. Nc2) 24... Bxe2 {[%emt 0:00:47]} 25. Nxe2 {[%emt 0:00:24]} Rxa1 {[%emt 0:04:07]} 26. Qxa1 {[%emt 0:00:27]} Rd8 {[%emt 0:03:05]} 27. Nf4 {[%emt 0:04:19]} (27. g3 $17) 27... Qc6 $2 {[%emt 0:18:53]} (27... b3 $19 {[%cal Od5d4] Hoping for ...d4!} 28. Qb2 Qb5) 28. Qd4 $11 {[%emt 0:04:20]} Bf6 {[%emt 0:02:26] Prevents Nxd5} (28... f5 $15 {might be stronger.} 29. Nxd5 Kf7) 29. Nxd5 $2 {[%emt 0:06:40]} Kg7 $19 {[%emt 0:00:10]} (29... Bxd4 $2 {perishes.} 30. Ne7+ Kf8 31. Nxc6 $18) 30. Qd3 {[%emt 0:00:04] [#]} Qa4 $1 {[%emt 0:00:40] And now ...b3 would win.} 31. e4 $2 {[%emt 0:01:26]} (31. Rb1 b3 32. Qxb3 (32. Rxb3 $2 {loses.} Rxd5 33. Qb1 Qd7 $19) 32... Qxb3 33. Rxb3 Rxd5 34. g3) 31... b3 {[%emt 0:03:08] White must now prevent ...b2.} 32. Qf3 {[%emt 0:03:17]} Be5 {[%emt 0:02:02] ...b2 is the strong threat.} 33. Rb1 {[%emt 0:00:42]} (33. Nc3 Rxd1+ 34. Nxd1) 33... b2 {[%emt 0:00:17] Strongly threatening ...Rc8.} 34. g3 {[%emt 0:06:37]} Qc2 {[%emt 0:01:12] Weighted Error Value: White=0.50/Black=0.26 (precise) .  Loses game:     	White=1     	---        Mistake:       	White=6     	Black=2      Inaccurate:     	White=1     	Black=4      OK:         	White=6     	Black=7      Best:        	White=1     	Black=3      Strong:       	White=1     	Black=2} 0-1

[Event "45th FIDE Womens Olympiad 2024"]
[Site "Budapest"]
[Date "2024.09.11"]
[Round "1.13"]
[White "Lindiawati, Evi"]
[Black "Asha huang Limboo"]
[Result "1-0"]
[ECO "C03"]
[WhiteElo "1940"]
[BlackElo "1420"]
[Annotator "NA"]
[PlyCount "73"]
[EventDate "2024.09.05"]
[EventType "team-tourn"]
[EventCountry "HUN"]
[SourceTitle "playchess.com"]
[Source "ChessBase"]
[SourceQuality "1"]
[WhiteTeam "Indonesia"]
[BlackTeam "Bhutan"]
[WhiteTeamCountry "INA"]
[BlackTeamCountry "BTN"]
[TimeControl "40/5400+30:1800+30"]

1. e4 e6 2. d4 d5 3. Nd2 Bd7 4. Ngf3 Bc6 5. e5 Nd7 6. Bd3 f6 7. Nb3 Qe7 8. Bf4 g5 9. exf6 Ngxf6 10. Bxc7 Rg8 11. Qe2 Nb6 12. Bg3 g4 13. Ne5 Nc4 14. Nxc6 bxc6 15. Bxc4 dxc4 16. Qxc4 Qd7 17. O-O Ne4 18. Rfe1 Nxg3 19. Rxe6+ Kd8 20. hxg3 Rg6 21. Rae1 Kc7 22. Rxg6 hxg6 23. Qe6 Re8 24. Qxe8 Qxe8 25. Rxe8 Bd6 26. c4 Kd7 27. Rg8 Be7 28. Rxg6 a5 29. Nxa5 c5 30. dxc5 Bxc5 31. Rxg4 Bb4 32. Nb3 Kc6 33. Rg6+ Kd7 34. a4 Kc7 35. a5 Kb8 36. Rb6+ Ka7 37. Rxb4 1-0

[Event "45th FIDE Womens Olympiad 2024"]
[Site "Budapest"]
[Date "2024.09.11"]
[Round "1.14"]
[White "Maltsevskaya, Aleksandra"]
[Black "Chung Hurtado, Yaleika"]
[Result "1-0"]
[ECO "B12"]
[WhiteElo "2404"]
[BlackElo "1832"]
[Annotator "ChessBase"]
[PlyCount "65"]
[EventDate "2024.09.05"]
[EventType "team-tourn"]
[EventCountry "HUN"]
[SourceTitle "playchess.com"]
[Source "ChessBase"]
[SourceQuality "1"]
[WhiteTeam "Poland"]
[BlackTeam "Panama"]
[WhiteTeamCountry "POL"]
[BlackTeamCountry "PAN"]
[TimeControl "40/5400+30:1800+30"]

1. e4 {[%emt 0:00:03]} c6 {[%emt 0:00:11]} 2. d4 {[%emt 0:00:05]} d5 {[%emt 0:00:15]} 3. e5 {[%emt 0:00:06]} c5 {[%emt 0:00:43]} 4. Nf3 {[%emt 0:00:08]} Nc6 {[%emt 0:01:10]} 5. dxc5 {[%emt 0:00:33]} Bg4 {[%emt 0:02:24]} 6. c3 {[%emt 0:00:11]} Bxf3 {[%emt 0:01:36]} 7. Qxf3 {[%emt 0:00:06]} Nxe5 {[%emt 0:00:34]} 8. Bb5+ {[%emt 0:02:33]} Nc6 {[%emt 0:02:45]} 9. O-O {[%emt 0:00:39]} e6 {[%emt 0:00:42]} 10. b4 {[%emt 0:07:23]} Be7 {[%emt 0:01:51]} 11. Nd2 {[%emt 0:06:31]} Bf6 {[%emt 0:02:51]} 12. Rd1 {[%emt 0:00:57]} Qc7 {[%emt 0:02:39]} 13. Nf1 {[%emt 0:06:33]} Nge7 {[%emt 0:03:49]} 14. Ng3 {[%emt 0:11:52]} O-O {[%emt 0:08:13]} 15. a3 {[%emt 0:01:29]} a6 {[%emt 0:06:37]} 16. Bxc6 {[%emt 0:07:17]} Nxc6 {[%emt 0:01:37]} 17. Nh5 {[%emt 0:02:38]} Qe7 {[%emt 0:09:13]} 18. Bf4 {[%emt 0:02:46]} Ne5 {[%emt 0:07:40]} 19. Qg3 {[%emt 0:00:22]} Nc4 {[%emt 0:00:02]} 20. Bh6 {[%emt 0:01:28]} g6 {[%emt 0:06:00]} 21. Nxf6+ {[%emt 0:00:20]} Qxf6 {[%emt 0:00:13]} 22. Bxf8 {[%emt 0:00:03]} Rxf8 {[%emt 0:02:23]} 23. Rd4 {[%emt 0:06:22]} Rc8 {[%emt 0:05:09]} 24. Rad1 {[%emt 0:01:22]} Nxa3 {[%emt 0:01:07]} 25. Qh3 {[%emt 0:08:53]} Rc7 {[%emt 0:04:50]} 26. Rh4 {[%emt 0:00:30]} Qg7 {[%emt 0:02:33]} 27. c4 {[%emt 0:02:02]} Nc2 {[%emt 0:07:35]} 28. cxd5 {[%emt 0:02:47]} exd5 {[%emt 0:01:06]} 29. Qd3 {[%emt 0:05:46]} Qf6 {[%emt 0:03:01]} 30. g3 {[%emt 0:00:14]} Qb2 {[%emt 0:05:39]} 31. Qxd5 {[%emt 0:00:12]} Kg7 {[%emt 0:00:39]} 32. Qd2 {[%emt 0:00:16]} Qb3 {[%emt 0:01:17]} 33. Qh6+ {[%emt 0:00:13]} 1-0

[Event "45th FIDE Womens Olympiad 2024"]
[Site "Budapest"]
[Date "2024.09.11"]
[Round "1.15"]
[White "Yuliana, Evi"]
[Black "Yeshey lhaden"]
[Result "1-0"]
[ECO "D06"]
[WhiteElo "1912"]
[BlackElo "1514"]
[Annotator "NA RC"]
[PlyCount "45"]
[EventDate "2024.09.05"]
[EventType "team-tourn"]
[EventCountry "HUN"]
[SourceTitle "playchess.com"]
[Source "ChessBase"]
[SourceQuality "1"]
[WhiteTeam "Indonesia"]
[BlackTeam "Bhutan"]
[WhiteTeamCountry "INA"]
[BlackTeamCountry "BTN"]
[TimeControl "40/5400+30:1800+30"]

1. d4 d5 2. c4 Nf6 3. Nf3 Bf5 4. Nc3 e6 5. Qb3 b6 6. Bg5 Be7 7. Bxf6 Bxf6 8. cxd5 O-O 9. e4 Bg4 10. dxe6 Bxf3 11. exf7+ Kh8 12. gxf3 Qxd4 13. Rd1 Qe5 14. Bb5 a6 15. Be8 Qc5 16. Rd5 Qe7 17. Rd3 Qc5 18. Qd5 Qxd5 19. Nxd5 Bxb2 20. Nxc7 Ra7 21. Ne6 Rfxf7 22. Bxf7 Rxf7 23. Rd8+ 1-0

[Event "45th FIDE Womens Olympiad 2024"]
[Site "Budapest"]
[Date "2024.09.11"]
[Round "1.15"]
[White "Vasquez Jaen, Lourdes Lorena"]
[Black "Kiolbasa, Oliwia"]
[Result "0-1"]
[ECO "E17"]
[WhiteElo "1821"]
[BlackElo "2348"]
[Annotator "ChessBase"]
[PlyCount "58"]
[EventDate "2024.09.05"]
[EventType "team-tourn"]
[EventCountry "HUN"]
[SourceTitle "playchess.com"]
[Source "ChessBase"]
[SourceQuality "1"]
[WhiteTeam "Panama"]
[BlackTeam "Poland"]
[WhiteTeamCountry "PAN"]
[BlackTeamCountry "POL"]
[TimeControl "40/5400+30:1800+30"]

1. d4 {[%emt 0:00:06]} Nf6 {[%emt 0:00:10]} 2. c4 {[%emt 0:00:11]} e6 {[%emt 0:00:15]} 3. Nf3 {[%emt 0:00:11]} b6 {[%emt 0:02:27]} 4. g3 {[%emt 0:00:49]} Bb7 {[%emt 0:00:07]} 5. Bg2 {[%emt 0:01:04]} Be7 {[%emt 0:00:15]} 6. d5 {[%emt 0:00:59]} exd5 {[%emt 0:05:23]} 7. Nh4 {[%emt 0:00:45]} c6 {[%emt 0:14:15]} 8. Nf5 {[%emt 0:05:20]} O-O {[%emt 0:03:42]} 9. cxd5 {[%emt 0:05:17]} Nxd5 {[%emt 0:03:43]} 10. Bxd5 {[%emt 0:14:09]} cxd5 {[%emt 0:01:00]} 11. Nxe7+ {[%emt 0:00:36]} Qxe7 {[%emt 0:00:13]} 12. O-O {[%emt 0:00:26]} d4 {[%emt 0:07:29]} 13. Qxd4 {[%emt 0:07:19]} Qxe2 {[%emt 0:00:57]} 14. Qf4 {[%emt 0:08:53]} Nc6 {[%emt 0:09:49]} 15. Nc3 {[%emt 0:10:02]} Nd4 {[%emt 0:05:47]} 16. Rd1 {[%emt 0:00:51]} Nf3+ {[%emt 0:00:33]} 17. Kg2 {[%emt 0:00:45]} Ng5+ {[%emt 0:14:46]} 18. Rd5 {[%emt 0:04:14]} Bxd5+ {[%emt 0:00:33]} 19. Nxd5 {[%emt 0:00:08]} Ne6 {[%emt 0:06:53]} 20. Ne7+ {[%emt 0:04:17]} Kh8 {[%emt 0:00:07]} 21. Qh4 {[%emt 0:00:11]} Rae8 {[%emt 0:05:39]} 22. Nf5 {[%emt 0:06:14]} Qd3 {[%emt 0:00:11]} 23. Qg4 {[%emt 0:07:20]} g6 {[%emt 0:00:50]} 24. Nh4 {[%emt 0:08:55]} f5 {[%emt 0:04:03]} 25. Qb4 {[%emt 0:08:35]} Qe4+ {[%emt 0:02:53]} 26. Qxe4 {[%emt 0:00:02]} fxe4 {[%emt 0:00:05]} 27. Bh6 {[%emt 0:02:12]} Rf7 {[%emt 0:01:09]} 28. Kg1 {[%emt 0:02:35]} g5 {[%emt 0:00:17]} 29. Ng2 {[%emt 0:00:27]} Rf6 {[%emt 0:00:11]} 0-1

[Event "45th FIDE Womens Olympiad 2024"]
[Site "Budapest"]
[Date "2024.09.11"]
[Round "1.16"]
[White "Sliwicka, Alicja"]
[Black "Caicedo Rios, Layla Yasmira"]
[Result "1-0"]
[ECO "B90"]
[WhiteElo "2373"]
[BlackElo "1803"]
[Annotator "ChessBase"]
[PlyCount "63"]
[EventDate "2024.09.05"]
[EventType "team-tourn"]
[EventCountry "HUN"]
[SourceTitle "playchess.com"]
[Source "ChessBase"]
[SourceQuality "1"]
[WhiteTeam "Poland"]
[BlackTeam "Panama"]
[WhiteTeamCountry "POL"]
[BlackTeamCountry "PAN"]
[TimeControl "40/5400+30:1800+30"]

1. e4 {[%emt 0:00:04]} c5 {[%emt 0:01:07]} 2. Nf3 {[%emt 0:00:06]} d6 {[%emt 0:00:05]} 3. d4 {[%emt 0:00:05]} cxd4 {[%emt 0:00:10]} 4. Nxd4 {[%emt 0:00:01]} Nf6 {[%emt 0:00:08]} 5. Nc3 {[%emt 0:00:09]} a6 {[%emt 0:00:06]} 6. Bd3 {[%emt 0:00:10]} e5 {[%emt 0:01:29]} 7. Nde2 {[%emt 0:00:09]} Be7 {[%emt 0:00:15]} 8. O-O {[%emt 0:00:08]} O-O {[%emt 0:00:22]} 9. Ng3 {[%emt 0:00:14]} Nc6 {[%emt 0:00:52]} 10. Nd5 {[%emt 0:04:23]} h6 {[%emt 0:05:14]} 11. Be3 {[%emt 0:05:33]} Be6 {[%emt 0:08:30]} 12. c4 {[%emt 0:04:43]} Rb8 {[%emt 0:17:48]} 13. Rc1 {[%emt 0:02:22]} Re8 {[%emt 0:06:55]} 14. Qd2 {[%emt 0:02:35]} Ng4 {[%emt 0:06:11]} 15. Bb6 {[%emt 0:06:39]} Qd7 {[%emt 0:01:48]} 16. Nxe7+ {[%emt 0:06:17]} Nxe7 {[%emt 0:05:35]} 17. h3 {[%emt 0:06:59]} Nf6 {[%emt 0:00:16]} 18. Rfd1 {[%emt 0:07:01]} Rbc8 {[%emt 0:07:11]} 19. Bf1 {[%emt 0:06:12]} Rc6 {[%emt 0:00:12]} 20. Be3 {[%emt 0:00:38]} Ng6 {[%emt 0:04:44]} 21. f3 {[%emt 0:09:49]} Kh7 {[%emt 0:04:06]} 22. b3 {[%emt 0:02:07]} Nh4 {[%emt 0:00:29]} 23. Qf2 {[%emt 0:00:56]} g5 {[%emt 0:05:56]} 24. Rc2 {[%emt 0:03:37]} Ng6 {[%emt 0:02:39]} 25. Rcd2 {[%emt 0:01:50]} Nf4 {[%emt 0:01:26]} 26. c5 {[%emt 0:08:49]} d5 {[%emt 0:12:10]} 27. exd5 {[%emt 0:00:56]} N4xd5 {[%emt 0:01:52]} 28. Bc4 {[%emt 0:01:11]} Rd8 {[%emt 0:00:18]} 29. Ne4 {[%emt 0:01:29]} Kg6 {[%emt 0:05:51]} 30. Nxf6 {[%emt 0:04:01]} Kxf6 {[%emt 0:00:35]} 31. h4 {[%emt 0:03:01]} Rcc8 {[%emt 0:01:07]} 32. hxg5+ {[%emt 0:01:22]} 1-0

[Event "45th FIDE Womens Olympiad 2024"]
[Site "Budapest"]
[Date "2024.09.11"]
[Round "1.17"]
[White "Song, Yuxin"]
[Black "February, Jesse Nikki"]
[Result "1-0"]
[ECO "C10"]
[WhiteElo "2373"]
[BlackElo "2013"]
[Annotator "ChessBase"]
[PlyCount "87"]
[EventDate "2024.09.05"]
[EventType "team-tourn"]
[EventCountry "HUN"]
[SourceTitle "playchess.com"]
[Source "ChessBase"]
[SourceQuality "1"]
[WhiteTeam "China"]
[BlackTeam "South Africa"]
[WhiteTeamCountry "CHN"]
[BlackTeamCountry "RSA"]
[TimeControl "40/5400+30:1800+30"]

1. e4 {[%emt 0:00:03]} e6 {[%emt 0:00:23]} 2. d4 {[%emt 0:00:06]} d5 {[%emt 0:00:07]} 3. Nd2 {[%emt 0:00:08]} dxe4 {[%emt 0:01:34]} 4. Nxe4 {[%emt 0:00:05]} Nd7 {[%emt 0:00:33]} 5. Nf3 {[%emt 0:00:04]} Ngf6 {[%emt 0:00:33]} 6. Nxf6+ {[%emt 0:00:06]} Nxf6 {[%emt 0:00:21]} 7. Ne5 {[%emt 0:00:01]} Qd5 {[%emt 0:09:05]} 8. Be3 {[%emt 0:14:43]} Bd6 {[%emt 0:11:07]} 9. Nd3 {[%emt 0:08:32]} O-O {[%emt 0:04:24]} 10. Be2 {[%emt 0:01:52]} Qa5+ {[%emt 0:11:11]} 11. c3 {[%emt 0:00:55]} c6 {[%emt 0:02:01]} 12. h4 {[%emt 0:10:31]} Nd5 {[%emt 0:04:34]} 13. Bd2 {[%emt 0:00:38]} Qc7 {[%emt 0:00:50]} 14. Qc1 {[%emt 0:05:00]} e5 {[%emt 0:05:20]} 15. dxe5 {[%emt 0:04:34]} Bxe5 {[%emt 0:00:13]} 16. c4 {[%emt 0:00:08]} Nf6 {[%emt 0:05:11]} 17. Nxe5 {[%emt 0:09:23]} Qxe5 {[%emt 0:03:19]} 18. Bc3 {[%emt 0:00:44]} Qf5 {[%emt 0:06:20]} 19. O-O {[%emt 0:04:09]} Re8 {[%emt 0:05:55]} 20. Re1 {[%emt 0:02:08]} Be6 {[%emt 0:03:17]} 21. b3 {[%emt 0:01:50]} Rad8 {[%emt 0:05:53]} 22. Bf3 {[%emt 0:02:55]} Rd3 {[%emt 0:10:23]} 23. Re5 {[%emt 0:01:26]} Qg6 {[%emt 0:01:36]} 24. Be2 {[%emt 0:02:13]} Ng4 {[%emt 0:07:05]} 25. Rg5 {[%emt 0:00:16]} Rxc3 {[%emt 0:00:49]} 26. Qxc3 {[%emt 0:00:08]} Qf6 {[%emt 0:00:07]} 27. Qxf6 {[%emt 0:01:10]} Nxf6 {[%emt 0:00:07]} 28. Re5 {[%emt 0:00:25]} Nd7 {[%emt 0:00:40]} 29. Re3 {[%emt 0:00:08]} f5 {[%emt 0:00:22]} 30. Rd1 {[%emt 0:01:01]} Kf7 {[%emt 0:00:33]} 31. g4 {[%emt 0:00:14]} g6 {[%emt 0:01:05]} 32. gxf5 {[%emt 0:01:01]} Bxf5 {[%emt 0:00:07]} 33. Rxe8 {[%emt 0:00:21]} Kxe8 {[%emt 0:00:06]} 34. h5 {[%emt 0:00:29]} Ke7 {[%emt 0:00:25]} 35. hxg6 {[%emt 0:00:07]} hxg6 {[%emt 0:00:18]} 36. Bd3 {[%emt 0:00:06]} Bg4 {[%emt 0:00:32]} 37. Re1+ {[%emt 0:00:22]} Kf7 {[%emt 0:00:53]} 38. f3 {[%emt 0:00:06]} Bh5 {[%emt 0:00:23]} 39. Kf2 {[%emt 0:00:09]} Kf6 {[%emt 0:00:29]} 40. Re8 {[%emt 0:00:48]} Ne5 {[%emt 0:00:10]} 41. Be2 {[%emt 0:30:20]} c5 {[%emt 0:04:59]} 42. Rb8 {[%emt 0:00:00]} b6 {[%emt 0:00:35]} 43. Rb7 {[%emt 0:00:00]} g5 {[%emt 0:03:39]} 44. f4 {[%emt 0:00:00]} 1-0

[Event "45th FIDE Womens Olympiad 2024"]
[Site "Budapest"]
[Date "2024.09.11"]
[Round "1.18"]
[White "Badenhorst, Chloe"]
[Black "Guo, Qi"]
[Result "0-1"]
[ECO "C77"]
[WhiteElo "1981"]
[BlackElo "2367"]
[Annotator "ChessBase"]
[PlyCount "94"]
[EventDate "2024.09.05"]
[EventType "team-tourn"]
[EventCountry "HUN"]
[SourceTitle "playchess.com"]
[Source "ChessBase"]
[SourceQuality "1"]
[WhiteTeam "South Africa"]
[BlackTeam "China"]
[WhiteTeamCountry "RSA"]
[BlackTeamCountry "CHN"]
[TimeControl "40/5400+30:1800+30"]

1. e4 {[%emt 0:00:04]} e5 {[%emt 0:01:02]} 2. Nf3 {[%emt 0:00:16]} Nc6 {[%emt 0:05:06]} 3. Bb5 {[%emt 0:00:30]} Nf6 {[%emt 0:01:30]} 4. Qe2 {[%emt 0:01:56]} a6 {[%emt 0:08:57]} 5. Ba4 {[%emt 0:00:44]} Be7 {[%emt 0:01:36]} 6. c3 {[%emt 0:05:40]} b5 {[%emt 0:00:55]} 7. Bb3 {[%emt 0:00:40]} d6 {[%emt 0:02:00]} 8. d4 {[%emt 0:02:28]} Bg4 {[%emt 0:01:14]} 9. Be3 {[%emt 0:02:31]} Na5 {[%emt 0:05:46]} 10. Bc2 {[%emt 0:02:03]} Nc4 {[%emt 0:02:54]} 11. b3 {[%emt 0:08:53]} Nxe3 {[%emt 0:00:47]} 12. Qxe3 {[%emt 0:03:30]} Nd7 {[%emt 0:02:08]} 13. Nbd2 {[%emt 0:02:58]} c6 {[%emt 0:06:12]} 14. h3 {[%emt 0:02:21]} Bh5 {[%emt 0:05:00]} 15. O-O {[%emt 0:06:57]} O-O {[%emt 0:00:24]} 16. Rfe1 {[%emt 0:01:21]} Qb6 {[%emt 0:09:46]} 17. Rad1 {[%emt 0:05:17]} Rad8 {[%emt 0:05:01]} 18. Nf1 {[%emt 0:04:32]} Rfe8 {[%emt 0:06:50]} 19. Ng3 {[%emt 0:04:41]} exd4 {[%emt 0:03:34]} 20. cxd4 {[%emt 0:00:19]} Bg6 {[%emt 0:00:04]} 21. Bb1 {[%emt 0:04:30]} c5 {[%emt 0:00:16]} 22. Qf4 {[%emt 0:02:56]} cxd4 {[%emt 0:04:48]} 23. Nxd4 {[%emt 0:03:13]} Bf6 {[%emt 0:00:09]} 24. Ndf5 {[%emt 0:03:27]} Be5 {[%emt 0:00:09]} 25. Qf3 {[%emt 0:02:01]} Nf6 {[%emt 0:04:28]} 26. Qe3 {[%emt 0:05:48]} Qxe3 {[%emt 0:01:01]} 27. Rxe3 {[%emt 0:00:24]} d5 {[%emt 0:07:37]} 28. exd5 {[%emt 0:03:17]} Nxd5 {[%emt 0:00:37]} 29. Ree1 {[%emt 0:03:40]} Kf8 {[%emt 0:02:04]} 30. Rc1 {[%emt 0:03:48]} Nc3 {[%emt 0:02:46]} 31. f4 {[%emt 0:06:03]} Bxf4 {[%emt 0:02:10]} 32. Rxe8+ {[%emt 0:00:37]} Kxe8 {[%emt 0:00:15]} 33. Rxc3 {[%emt 0:02:57]} Rd1+ {[%emt 0:00:51]} 34. Kf2 {[%emt 0:01:27]} Rxb1 {[%emt 0:03:09]} 35. Nxg7+ {[%emt 0:01:02]} Kd7 {[%emt 0:00:03]} 36. N7f5 {[%emt 0:01:35]} Rb2+ {[%emt 0:00:06]} 37. Kf3 {[%emt 0:00:25]} Bxg3 {[%emt 0:00:06]} 38. Nxg3 {[%emt 0:00:25]} Rxa2 {[%emt 0:00:04]} 39. h4 {[%emt 0:00:34]} Rb2 {[%emt 0:00:45]} 40. Re3 {[%emt 0:03:10]} Bc2 {[%emt 0:00:49]} 41. Kf4 {[%emt 0:31:24]} Rxb3 {[%emt 0:31:32]} 42. Re2 {[%emt 0:00:35]} Bb1 {[%emt 0:00:23]} 43. Nh5 {[%emt 0:00:00]} a5 {[%emt 0:00:00]} 44. Kg5 {[%emt 0:00:00]} a4 {[%emt 0:00:00]} 45. Rf2 {[%emt 0:00:00]} Ke7 {[%emt 0:00:00]} 46. Re2+ {[%emt 0:00:00]} Kd6 {[%emt 0:00:00]} 47. Rf2 {[%emt 0:00:00]} a3 {[%emt 0:00:00]} 0-1

[Event "45th FIDE Womens Olympiad 2024"]
[Site "Budapest"]
[Date "2024.09.11"]
[Round "1.18"]
[White "Azhar, Puteri Rifqah Fahada"]
[Black "Lazzarini, Giulia"]
[Result "1-0"]
[ECO "D02"]
[WhiteElo "1947"]
[BlackElo "1520"]
[Annotator "NA RC"]
[PlyCount "23"]
[EventDate "2024.09.05"]
[EventType "team-tourn"]
[EventCountry "HUN"]
[SourceTitle "playchess.com"]
[Source "ChessBase"]
[SourceQuality "1"]
[WhiteTeam "Malaysia"]
[BlackTeam "San Marino"]
[WhiteTeamCountry "MAS"]
[BlackTeamCountry "SMR"]
[TimeControl "40/5400+30:1800+30"]

1. d4 d5 2. Nf3 Bf5 3. Bf4 Nf6 4. e3 g6 5. c4 c6 6. Qb3 b6 7. Nc3 e6 8. h3 h5 9. Rc1 c5 10. Nb5 Na6 11. Qa4 Qd7 12. Ne5 1-0